fUST/lending_fUST_20250715
["ID","MTS","AMOUNT","RATE_DAILY","PERIOD"]
[372284098,1752574256904,-549.5,0.00020547,2]
[372284099,1752574256916,-460.0,0.00020547,2]
[372284100,1752574256929,-460.0,0.00020547,2]
[372284101,1752574256941,-460.0,0.00020547,2]
[372284102,1752574256953,-460.0,0.00020547,2]
[372284103,1752574256966,-460.0,0.00020547,2]
[372284104,1752574256978,-460.0,0.00020547,2]
[372284105,1752574256991,-460.0,0.00020547,2]
[372284106,1752574257003,-460.0,0.00020547,2]
[372284107,1752574257015,-460.0,0.00020547,2]
[372284108,1752574257027,-460.0,0.00020547,2]
[372284109,1752574257041,-460.0,0.00020547,2]
[372284110,1752574257053,-460.0,0.00020547,2]
[372284111,1752574257065,-460.0,0.00020547,2]
[372284112,1752574257078,-460.0,0.00020547,2]
[372284113,1752574257091,-460.0,0.00020547,2]
[372284114,1752574257103,-460.0,0.00020547,2]
[372284115,1752574257117,-460.0,0.00020547,2]
[372284116,1752574257130,-505.73,0.00020547,2]
[372284117,1752574257141,-460.0,0.00020547,2]
[372284118,1752574257154,-551.61,0.00020547,2]
[372284119,1752574257167,-488.01963404,0.00020547,2]
[372284120,1752574257179,-682.53,0.00020547,2]
[372284121,1752574257192,-460.0,0.00020547,2]
[372284122,1752574257206,-460.0,0.00020547,2]
[372284123,1752574257218,-460.0,0.00020547,2]
[372284124,1752574257231,-460.0,0.00020547,2]
[372284125,1752574257244,-460.0,0.00020547,2]
[372284126,1752574257256,-460.0,0.00020547,2]
[372284127,1752574257270,-550.0,0.00020547,2]
[372284128,1752574257282,-813.62,0.00020547,2]
[372284129,1752574257297,-460.0,0.00020547,2]
[372284130,1752574257310,-460.0,0.00020547,2]
[372284131,1752574257320,-460.0,0.00020547,2]
[372284132,1752574257330,-460.0,0.00020547,2]
[372284133,1752574257340,-460.0,0.00020547,2]
[372284134,1752574257350,-460.0,0.00020547,2]
[372284135,1752574257360,-460.0,0.00020547,2]
[372284136,1752574257370,-460.0,0.00020547,2]
[372284137,1752574257380,-460.0,0.00020547,2]
[372284138,1752574257390,-916.9,0.00020547,2]
[372284139,1752574257399,-460.0,0.00020547,2]
[372284140,1752574257409,-474.48,0.00020547,2]
[372284141,1752574257419,-849.12,0.00020547,2]
[372284142,1752574257429,-460.0,0.00020547,2]
[372284143,1752574257440,-924.31,0.00020547,2]
[372284144,1752574257449,-460.0,0.00020547,2]
[372284145,1752574257460,-460.0,0.00020547,2]
[372284146,1752574257470,-460.0,0.00020547,2]
[372284147,1752574257480,-460.0,0.00020547,2]
[372284148,1752574257490,-460.0,0.00020547,2]
[372284149,1752574257499,-460.0,0.00020547,2]
[372284150,1752574257509,-460.0,0.00020547,2]
[372284151,1752574257519,-460.0,0.00020547,2]
[372284152,1752574257528,-583.30112813,0.00020547,2]
[372284153,1752574257538,-460.0,0.00020547,2]
[372284154,1752574257547,-186.36229032,0.00020547,2]
[372284155,1752574257557,-460.0,0.00020547,2]
[372284156,1752574257566,-460.0,0.00020547,2]
[372284157,1752574257575,-460.0,0.00020547,2]
[372284158,1752574257584,-460.0,0.00020547,2]
[372284159,1752574257595,-460.0,0.00020547,2]
[372284160,1752574257827,-400.0,0.00020547,2]
[372284161,1752574257842,-460.0,0.00020547,2]
[372284162,1752574257853,-460.0,0.00020547,2]
[372284163,1752574257863,-460.0,0.00020547,2]
[372284164,1752574257874,-460.0,0.00020547,2]
[372284165,1752574257884,-830.36,0.00020547,2]
[372284166,1752574257893,-460.0,0.00020547,2]
[372284167,1752574257903,-460.0,0.00020547,2]
[372284168,1752574257912,-460.0,0.00020547,2]
[372284169,1752574257922,-460.0,0.00020547,2]
[372284170,1752574257931,-460.0,0.00020547,2]
[372284171,1752574257940,-822.0,0.00020547,2]
[372284172,1752574257951,-2175.23,0.00020547,2]
[372284173,1752574257961,-460.0,0.00020547,2]
[372284174,1752574257970,-460.0,0.00020547,2]
[372284175,1752574257980,-460.0,0.00020547,2]
[372284176,1752574257989,-460.0,0.00020547,2]
[372284177,1752574257998,-507.89,0.00020547,2]
[372284178,1752574258009,-460.0,0.00020547,2]
[372284179,1752574258018,-692.9,0.00020547,2]
[372284180,1752574258028,-460.0,0.00020547,2]
[372284181,1752574258037,-677.19,0.00020547,2]
[372284182,1752574258046,-460.0,0.00020547,2]
[372284183,1752574258056,-2206.98,0.00020547,2]
[372284184,1752574258065,-564.23,0.00020547,2]
[372284185,1752574258075,-759.47,0.00020547,2]
[372284186,1752574258084,-460.0,0.00020547,2]
[372284187,1752574258093,-460.0,0.00020547,2]
[372284188,1752574258103,-1235.82,0.00020547,2]
[372284189,1752574258113,-460.0,0.00020547,2]
[372284190,1752574258123,-460.0,0.00020547,2]
[372284191,1752574258132,-460.0,0.00020547,2]
[372284192,1752574258141,-460.0,0.00020547,2]
[372284193,1752574258151,-460.0,0.00020547,2]
[372284194,1752574258160,-460.0,0.00020547,2]
[372284195,1752574258171,-460.0,0.00020547,2]
[372284196,1752574258180,-2580.94,0.00020547,2]
[372284197,1752574258190,-460.0,0.00020547,2]
[372284198,1752574258199,-745.92,0.00020547,2]
[372284199,1752574258209,-827.1,0.00020547,2]
[372284200,1752574258218,-4456.61,0.00020547,2]
[372284201,1752574258227,-460.0,0.00020547,2]
[372284202,1752574258237,-460.0,0.00020547,2]
[372284203,1752574258246,-460.0,0.00020547,2]
[372284204,1752574258255,-460.0,0.00020547,2]
[372284205,1752574258264,-1650.28,0.00020547,2]
[372284206,1752574258275,-460.0,0.00020547,2]
[372284207,1752574258286,-926.97,0.00020547,2]
[372284208,1752574258295,-460.0,0.00020547,2]
[372284209,1752574258305,-460.0,0.00020547,2]
[372284210,1752574258316,-460.0,0.00020547,2]
[372284211,1752574258326,-460.0,0.00020547,2]
[372284212,1752574258335,-460.0,0.00020547,2]
[372284213,1752574258345,-460.0,0.00020547,2]
[372284214,1752574258355,-914.91,0.00020547,2]
[372284215,1752574258365,-718.09,0.00020547,2]
[372284216,1752574258374,-473.8056111,0.00020547,2]
[372284217,1752574258384,-6188.2,0.00020547,2]
[372284218,1752574258394,-667.8,0.00020547,2]
[372284219,1752574258404,-460.0,0.00020547,2]
[372284220,1752574258414,-460.0,0.00020547,2]
[372284221,1752574258424,-460.0,0.00020547,2]
[372284222,1752574258434,-460.0,0.00020547,2]
[372284223,1752574258444,-483.94,0.00020547,2]
[372284224,1752574258453,-460.0,0.00020547,2]
[372284225,1752574258463,-1333.2,0.00020547,2]
[372284226,1752574258473,-469.56494247,0.00020547,2]
[372284227,1752574258483,-460.0,0.00020547,2]
[372284228,1752574258493,-460.0,0.00020547,2]
[372284229,1752574258503,-609.3,0.00020547,2]
[372284230,1752574258512,-460.0,0.00020547,2]
[372284231,1752574258523,-460.0,0.00020547,2]
[372284232,1752574258532,-3494.88,0.00020547,2]
[372284233,1752574258542,-1305.81,0.00020547,2]
[372284234,1752574258552,-2452.54,0.00020547,2]
[372284235,1752574258562,-460.0,0.00020547,2]
[372284236,1752574258572,-460.0,0.00020547,2]
[372284237,1752574258582,-5870.99,0.00020547,2]
[372284238,1752574258592,-460.0,0.00020547,2]
[372284239,1752574258603,-2087.21,0.00020547,2]
[372284240,1752574258612,-1068.81,0.00020547,2]
[372284241,1752574258622,-7356.29,0.00020547,2]
[372284242,1752574258632,-460.0,0.00020547,2]
[372284243,1752574258642,-460.0,0.00020547,2]
[372284244,1752574258651,-460.0,0.00020547,2]
[372284245,1752574258662,-460.0,0.00020547,2]
[372284246,1752574258672,-460.0,0.00020547,2]
[372284247,1752574258682,-711.16,0.00020547,2]
[372284248,1752574258692,-601.48,0.00020547,2]
[372284249,1752574258702,-460.0,0.00020547,2]
[372284250,1752574258711,-464.2836076,0.00020547,2]
[372284251,1752574258721,-914.1,0.00020547,2]
[372284252,1752574258730,-460.0,0.00020547,2]
[372284253,1752574258739,-460.0,0.00020547,2]
[372284254,1752574258751,-2432.42,0.00020547,2]
[372284255,1752574258764,-223.63981518,0.00020547,2]
[372284256,1752574258774,-460.0,0.00020547,2]
[372284257,1752574258783,-640.61,0.00020547,2]
[372284258,1752574258793,-460.0,0.00020547,2]
[372284259,1752574258803,-460.0,0.00020547,2]
[372284260,1752574258812,-1819.08,0.00020547,2]
[372284261,1752574258821,-460.0,0.00020547,2]
[372284262,1752574258831,-460.0,0.00020547,2]
[372284263,1752574258841,-460.0,0.00020547,2]
[372284264,1752574258852,-500.0,0.00020548,2]
[372284265,1752574258862,-504.65986824,0.00020568,2]
[372284266,1752574258871,-1500.0,0.00020568,2]
[372284267,1752574258881,-1500.0,0.00020568,2]
[372284268,1752574258890,-8288.09641976,0.0002059,3]
[372284269,1752574258900,-151.0,0.000206,4]
[372284270,1752574258910,-2700.43,0.000206,2]
[372284271,1752574258919,-5627.0,0.000206,2]
[372284272,1752574258929,-500.0,0.000207,2]
[372284273,1752574258939,-500.0,0.000207,2]
[372284274,1752574258948,-500.0,0.000207,2]
[372284275,1752574258957,-500.0,0.000207,2]
[372284276,1752574258967,-500.0,0.000207,2]
[372284277,1752574258977,-500.0,0.000207,2]
[372284278,1752574258987,-500.0,0.000207,2]
[372284279,1752574258998,-500.0,0.000207,2]
[372284280,1752574259007,-500.0,0.000207,2]
[372284281,1752574259018,-500.0,0.000207,2]
[372284282,1752574259029,-180.0,0.00020715,2]
[372284283,1752574259039,-5000.0,0.00020787,2]
[372284284,1752574259050,-2000.0,0.00020816,2]
[372284285,1752574259060,-2000.0,0.00020816,2]
[372284286,1752574259069,-460.0,0.00020821,2]
[372284287,1752574259080,-151.0,0.00020821,2]
[372284288,1752574259091,-151.0,0.00020821,2]
[372284289,1752574259101,-460.0,0.00020821,2]
[372284290,1752574259114,-460.0,0.00020821,2]
[372284291,1752574259124,-151.0,0.00020821,2]
[372284292,1752574259134,-151.0,0.00020821,2]
[372284293,1752574259143,-460.0,0.00020821,2]
[372284294,1752574259154,-262.340885,0.00020821,2]
[372284295,1752574259164,-262.340885,0.00020821,2]
[372284296,1752574259175,-460.0,0.00020821,2]
[372284297,1752574259186,-549.5,0.00020821,2]
[372284298,1752574259196,-460.0,0.00020821,2]
[372284299,1752574259207,-460.0,0.00020821,2]
[372284300,1752574259218,-463.68112012,0.00020821,2]
[372284301,1752574259228,-460.0,0.00020821,2]
[372284302,1752574259238,-460.0,0.00020821,2]
[372284303,1752574259248,-460.0,0.00020821,2]
[372284304,1752574259259,-460.0,0.00020821,2]
[372284305,1752574259268,-460.0,0.00020821,2]
[372284306,1752574259278,-460.0,0.00020821,2]
[372284307,1752574259288,-460.0,0.00020821,2]
[372284308,1752574259297,-460.0,0.00020821,2]
[372284309,1752574259306,-460.0,0.00020821,2]
[372284310,1752574259316,-460.0,0.00020821,2]
[372284311,1752574259327,-460.0,0.00020821,2]
[372284312,1752574259337,-465.48192467,0.00020821,2]
[372284313,1752574259348,-460.0,0.00020821,2]
[372284314,1752574259358,-505.73,0.00020821,2]
[372284315,1752574259368,-460.0,0.00020821,2]
[372284316,1752574259378,-551.61,0.00020821,2]
[372284317,1752574259388,-682.53,0.00020821,2]
[372284318,1752574259398,-460.0,0.00020821,2]
[372284319,1752574259407,-238.51968945,0.00020821,2]
[372284321,1752574259417,-460.0,0.00020821,2]
[372284322,1752574259426,-460.0,0.00020821,2]
[372284323,1752574259436,-460.0,0.00020821,2]
[372284324,1752574259445,-460.0,0.00020821,2]
[372284325,1752574259455,-550.0,0.00020821,2]
[372284326,1752574259464,-813.62,0.00020821,2]
[372284327,1752574259474,-460.0,0.00020821,2]
[372284328,1752574259484,-460.0,0.00020821,2]
[372284329,1752574259493,-460.0,0.00020821,2]
[372284330,1752574259503,-460.0,0.00020821,2]
[372284331,1752574259512,-216.94396209,0.00020821,2]
[372284332,1752574259522,-460.0,0.00020821,2]
[372284333,1752574259532,-460.0,0.00020821,2]
[372284334,1752574259542,-460.0,0.00020821,2]
[372284335,1752574259551,-460.0,0.00020821,2]
[372284336,1752574259561,-916.9,0.00020821,2]
[372284337,1752574259570,-600.55531265,0.00020821,2]
[372284338,1752574259580,-474.48,0.00020821,2]
[372284339,1752574259589,-849.12,0.00020821,2]
[372284340,1752574259599,-460.0,0.00020821,2]
[372284341,1752574259609,-924.31,0.00020821,2]
[372284342,1752574259618,-460.0,0.00020821,2]
[372284343,1752574259628,-460.0,0.00020821,2]
[372284344,1752574259638,-460.0,0.00020821,2]
[372284345,1752574259647,-460.0,0.00020821,2]
[372284346,1752574259657,-460.0,0.00020821,2]
[372284347,1752574259667,-468.16342656,0.00020821,2]
[372284348,1752574259677,-460.0,0.00020821,2]
[372284349,1752574259686,-460.0,0.00020821,2]
[372284350,1752574259695,-460.0,0.00020821,2]
[372284351,1752574259705,-460.0,0.00020821,2]
[372284352,1752574259714,-460.0,0.00020821,2]
[372284353,1752574259724,-460.0,0.00020821,2]
[372284354,1752574259733,-460.0,0.00020821,2]
[372284355,1752574259743,-460.0,0.00020821,2]
[372284356,1752574259751,-465.477809,0.00020821,2]
[372284357,1752574259760,-460.0,0.00020821,2]
[372284358,1752574259770,-460.0,0.00020821,2]
[372284359,1752574259779,-830.36,0.00020821,2]
[372284360,1752574259789,-460.0,0.00020821,2]
[372284361,1752574259798,-460.0,0.00020821,2]
[372284362,1752574259807,-460.0,0.00020821,2]
[372284363,1752574259817,-460.0,0.00020821,2]
[372284364,1752574259826,-460.0,0.00020821,2]
[372284365,1752574259836,-822.0,0.00020821,2]
[372284366,1752574259845,-2175.23,0.00020821,2]
[372284367,1752574259856,-460.0,0.00020821,2]
[372284368,1752574259866,-460.0,0.00020821,2]
[372284369,1752574259876,-455.58154844,0.00020821,2]
[372284370,1752574259886,-460.0,0.00020821,2]
[372284371,1752574259896,-507.89,0.00020821,2]
[372284372,1752574259906,-460.0,0.00020821,2]
[372284373,1752574259915,-692.9,0.00020821,2]
[372284374,1752574259925,-460.0,0.00020821,2]
[372284375,1752574259935,-677.19,0.00020821,2]
[372284376,1752574259944,-460.0,0.00020821,2]
[372284377,1752574259954,-2206.98,0.00020821,2]
[372284378,1752574259964,-564.23,0.00020821,2]
[372284379,1752574259973,-759.47,0.00020821,2]
[372284380,1752574259982,-460.0,0.00020821,2]
[372284381,1752574259992,-460.0,0.00020821,2]
[372284382,1752574260002,-1235.82,0.00020821,2]
[372284383,1752574260011,-460.0,0.00020821,2]
[372284384,1752574260020,-460.0,0.00020821,2]
[372284385,1752574260029,-460.0,0.00020821,2]
[372284386,1752574260039,-465.09424804,0.00020821,2]
[372284387,1752574260048,-460.0,0.00020821,2]
[372284388,1752574260058,-460.0,0.00020821,2]
[372284389,1752574260067,-460.0,0.00020821,2]
[372284390,1752574260077,-2580.94,0.00020821,2]
[372284391,1752574260086,-460.0,0.00020821,2]
[372284392,1752574260096,-745.92,0.00020821,2]
[372284393,1752574260106,-827.1,0.00020821,2]
[372284394,1752574260119,-4456.61,0.00020821,2]
[372284395,1752574260128,-460.0,0.00020821,2]
[372284396,1752574260137,-460.0,0.00020821,2]
[372284397,1752574260147,-460.0,0.00020821,2]
[372284398,1752574260157,-460.0,0.00020821,2]
[372284399,1752574260166,-1650.28,0.00020821,2]
[372284400,1752574260175,-460.0,0.00020821,2]
[372284401,1752574260186,-926.97,0.00020821,2]
[372284402,1752574260195,-460.0,0.00020821,2]
[372284403,1752574260204,-460.0,0.00020821,2]
[372284404,1752574260213,-460.0,0.00020821,2]
[372284405,1752574260223,-460.0,0.00020821,2]
[372284406,1752574260233,-460.0,0.00020821,2]
[372284407,1752574260242,-594.7,0.00020821,2]
[372284408,1752574260251,-914.91,0.00020821,2]
[372284409,1752574260261,-718.09,0.00020821,2]
[372284410,1752574260270,-6188.2,0.00020821,2]
[372284411,1752574260280,-667.8,0.00020821,2]
[372284412,1752574260290,-460.0,0.00020821,2]
[372284413,1752574260299,-460.0,0.00020821,2]
[372284414,1752574260308,-460.0,0.00020821,2]
[372284415,1752574260318,-460.0,0.00020821,2]
[372284416,1752574260327,-460.0,0.00020821,2]
[372284417,1752574260337,-1333.2,0.00020821,2]
[372284418,1752574260346,-460.0,0.00020821,2]
[372284419,1752574260355,-460.0,0.00020821,2]
[372284420,1752574260365,-609.3,0.00020821,2]
[372284421,1752574260374,-460.0,0.00020821,2]
[372284422,1752574260384,-460.0,0.00020821,2]
[372284423,1752574260393,-3494.88,0.00020821,2]
[372284424,1752574260403,-1305.81,0.00020821,2]
[372284425,1752574260412,-2452.54,0.00020821,2]
[372284426,1752574260421,-192.99933572,0.00020821,2]
[372284427,1752574260430,-460.0,0.00020821,2]
[372284428,1752574260439,-460.0,0.00020821,2]
[372284429,1752574260449,-5870.99,0.00020821,2]
[372284430,1752574260458,-2087.21,0.00020821,2]
[372284431,1752574260467,-1068.81,0.00020821,2]
[372284432,1752574260476,-7356.29,0.00020821,2]
[372284433,1752574260486,-460.0,0.00020821,2]
[372284434,1752574260495,-460.0,0.00020821,2]
[372284435,1752574260504,-460.0,0.00020821,2]
[372284436,1752574260512,-460.0,0.00020821,2]
[372284437,1752574260521,-460.0,0.00020821,2]
[372284438,1752574260531,-711.16,0.00020821,2]
[372284439,1752574260540,-601.48,0.00020821,2]
[372284440,1752574260549,-460.0,0.00020821,2]
[372284441,1752574260558,-914.1,0.00020821,2]
[372284442,1752574260567,-460.0,0.00020821,2]
[372284443,1752574260579,-281.42296728,0.00020821,2]
[372284444,1752574260589,-2432.42,0.00020821,2]
[372284445,1752574260598,-460.0,0.00020821,2]
[372284446,1752574260608,-640.61,0.00020821,2]
[372284447,1752574260624,-360.87122314,0.00020821,2]
[372284448,1752574260634,-1819.08,0.00020821,2]
[372284449,1752574260643,-460.0,0.00020821,2]
[372284450,1752574260652,-460.0,0.00020821,2]
[372284451,1752574260661,-500.0,0.00020822,2]
[372284452,1752574260670,-8288.09641976,0.00020831,4]
[372284453,1752574260679,-793.90522921,0.00020867,2]
[372284454,1752574260688,-500.0,0.00020873,2]
[372284455,1752574260698,-35334.54,0.000209,2]
[372284456,1752574260706,-723.999,0.00020918,2]
[372284457,1752574260715,-178.195,0.00020918,2]
[372284458,1752574260724,-260.0,0.00020988,2]
[372284459,1752574260734,-8288.09641976,0.00021072,4]
[372284460,1752574260743,-503.01863022,0.00021073,2]
[372284461,1752574260753,-500.0,0.00021073,2]
[372284462,1752574260763,-348.96960184,0.00021073,2]
[372284463,1752574260772,-460.0,0.00021095,2]
[372284464,1752574260781,-460.0,0.00021095,2]
[372284465,1752574260790,-460.0,0.00021095,2]
[372284466,1752574260800,-460.0,0.00021095,2]
[372284467,1752574260810,-460.0,0.00021095,2]
[372284468,1752574260819,-549.5,0.00021095,2]
[372284469,1752574260829,-460.0,0.00021095,2]
[372284470,1752574260838,-460.0,0.00021095,2]
[372284471,1752574260849,-460.0,0.00021095,2]
[372284472,1752574260858,-460.0,0.00021095,2]
[372284473,1752574260867,-460.0,0.00021095,2]
[372284474,1752574260876,-460.0,0.00021095,2]
[372284475,1752574260886,-460.0,0.00021095,2]
[372284476,1752574260895,-460.0,0.00021095,2]
[372284477,1752574260905,-460.0,0.00021095,2]
[372284478,1752574260914,-460.0,0.00021095,2]
[372284479,1752574260923,-460.0,0.00021095,2]
[372284480,1752574260933,-460.0,0.00021095,2]
[372284481,1752574260942,-460.0,0.00021095,2]
[372284482,1752574260952,-460.0,0.00021095,2]
[372284483,1752574260962,-505.73,0.00021095,2]
[372284484,1752574260972,-460.0,0.00021095,2]
[372284485,1752574260981,-551.61,0.00021095,2]
[372284486,1752574260990,-682.53,0.00021095,2]
[372284487,1752574260999,-460.0,0.00021095,2]
[372284488,1752574261009,-460.0,0.00021095,2]
[372284489,1752574261018,-460.0,0.00021095,2]
[372284490,1752574261028,-280.4211514,0.00021095,2]
[372284491,1752574261037,-460.0,0.00021095,2]
[372284492,1752574261047,-550.0,0.00021095,2]
[372284493,1752574261056,-813.62,0.00021095,2]
[372284494,1752574261066,-460.0,0.00021095,2]
[372284495,1752574261076,-460.0,0.00021095,2]
[372284496,1752574261085,-460.0,0.00021095,2]
[372284497,1752574261095,-330.68003145,0.00021095,2]
[372284498,1752574261235,-460.0,0.00021095,2]
[372284499,1752574261246,-425.48832527,0.00021095,2]
[372284500,1752574261256,-460.0,0.00021095,2]
[372284501,1752574261267,-916.9,0.00021095,2]
[372284502,1752574261276,-474.48,0.00021095,2]
[372284503,1752574261286,-849.12,0.00021095,2]
[372284504,1752574261296,-460.0,0.00021095,2]
[372284505,1752574261306,-924.31,0.00021095,2]
[372284506,1752574261316,-441.14699189,0.00021095,2]
[372284507,1752574261325,-460.0,0.00021095,2]
[372284508,1752574261335,-460.0,0.00021095,2]
[372284509,1752574261346,-460.0,0.00021095,2]
[372284510,1752574261356,-460.0,0.00021095,2]
[372284511,1752574261366,-537.00062229,0.00021095,2]
[372284512,1752574261376,-460.0,0.00021095,2]
[372284513,1752574261386,-460.0,0.00021095,2]
[372284514,1752574261396,-460.0,0.00021095,2]
[372284515,1752574261406,-460.0,0.00021095,2]
[372284516,1752574261416,-460.0,0.00021095,2]
[372284517,1752574261426,-460.0,0.00021095,2]
[372284518,1752574261435,-460.0,0.00021095,2]
[372284519,1752574261446,-460.0,0.00021095,2]
[372284520,1752574261456,-460.0,0.00021095,2]
[372284521,1752574261465,-830.36,0.00021095,2]
[372284522,1752574261475,-460.0,0.00021095,2]
[372284523,1752574261485,-460.0,0.00021095,2]
[372284524,1752574261495,-460.0,0.00021095,2]
[372284525,1752574261505,-460.0,0.00021095,2]
[372284526,1752574261515,-822.0,0.00021095,2]
[372284527,1752574261524,-2175.23,0.00021095,2]
[372284528,1752574261534,-460.0,0.00021095,2]
[372284529,1752574261544,-460.0,0.00021095,2]
[372284530,1752574261554,-460.0,0.00021095,2]
[372284531,1752574261564,-507.89,0.00021095,2]
[372284532,1752574261574,-460.0,0.00021095,2]
[372284533,1752574261583,-692.9,0.00021095,2]
[372284534,1752574261594,-460.0,0.00021095,2]
[372284535,1752574261605,-677.19,0.00021095,2]
[372284536,1752574261614,-460.0,0.00021095,2]
[372284537,1752574261623,-2206.98,0.00021095,2]
[372284538,1752574261633,-564.23,0.00021095,2]
[372284539,1752574261643,-759.47,0.00021095,2]
[372284540,1752574261653,-460.0,0.00021095,2]
[372284541,1752574261663,-495.78,0.00021095,2]
[372284542,1752574261672,-1235.82,0.00021095,2]
[372284543,1752574261682,-460.0,0.00021095,2]
[372284544,1752574261691,-460.0,0.00021095,2]
[372284545,1752574261701,-460.0,0.00021095,2]
[372284546,1752574261711,-460.0,0.00021095,2]
[372284547,1752574261721,-460.0,0.00021095,2]
[372284548,1752574261731,-460.0,0.00021095,2]
[372284549,1752574261741,-2580.94,0.00021095,2]
[372284550,1752574261750,-460.0,0.00021095,2]
[372284551,1752574261760,-745.92,0.00021095,2]
[372284552,1752574261770,-827.1,0.00021095,2]
[372284553,1752574261780,-4456.61,0.00021095,2]
[372284554,1752574261790,-460.0,0.00021095,2]
[372284555,1752574261799,-460.0,0.00021095,2]
[372284556,1752574261810,-460.0,0.00021095,2]
[372284557,1752574261819,-460.0,0.00021095,2]
[372284558,1752574261829,-1650.28,0.00021095,2]
[372284559,1752574261840,-460.0,0.00021095,2]
[372284560,1752574261851,-926.97,0.00021095,2]
[372284561,1752574261860,-460.0,0.00021095,2]
[372284562,1752574261871,-460.0,0.00021095,2]
[372284563,1752574261882,-460.0,0.00021095,2]
[372284564,1752574261892,-460.0,0.00021095,2]
[372284565,1752574261902,-460.0,0.00021095,2]
[372284566,1752574261912,-914.91,0.00021095,2]
[372284567,1752574261921,-718.09,0.00021095,2]
[372284568,1752574261930,-6188.2,0.00021095,2]
[372284569,1752574261940,-667.8,0.00021095,2]
[372284570,1752574261950,-460.0,0.00021095,2]
[372284571,1752574261960,-460.0,0.00021095,2]
[372284572,1752574261969,-460.0,0.00021095,2]
[372284573,1752574261979,-460.0,0.00021095,2]
[372284574,1752574261989,-460.0,0.00021095,2]
[372284575,1752574261998,-1333.2,0.00021095,2]
[372284576,1752574262008,-460.0,0.00021095,2]
[372284577,1752574262017,-156.83496223,0.00021095,2]
[372284578,1752574262026,-609.3,0.00021095,2]
[372284579,1752574262036,-484.83126635,0.00021095,2]
[372284580,1752574262046,-460.0,0.00021095,2]
[372284581,1752574262055,-3494.88,0.00021095,2]
[372284582,1752574262065,-1305.81,0.00021095,2]
[372284583,1752574262074,-2452.54,0.00021095,2]
[372284584,1752574262085,-460.0,0.00021095,2]
[372284585,1752574262103,-460.0,0.00021095,2]
[372284586,1752574262115,-5870.99,0.00021095,2]
[372284587,1752574262125,-2087.21,0.00021095,2]
[372284588,1752574262135,-1068.81,0.00021095,2]
[372284589,1752574262145,-7356.29,0.00021095,2]
[372284590,1752574262155,-460.0,0.00021095,2]
[372284591,1752574262166,-460.0,0.00021095,2]
[372284592,1752574262175,-460.0,0.00021095,2]
[372284593,1752574262186,-460.0,0.00021095,2]
[372284594,1752574262196,-711.16,0.00021095,2]
[372284595,1752574262205,-601.48,0.00021095,2]
[372284596,1752574262215,-460.0,0.00021095,2]
[372284597,1752574262225,-914.1,0.00021095,2]
[372284598,1752574262235,-2432.42,0.00021095,2]